[Event "*** SCC Grand Prix: Titled Tuesday Blitz"]
[Site "Chess.com"]
[Date "2020.09.08"]
[Round "4"]
[White "Keithonsky"]
[Black "LiemLe"]
[Result "0-1"]
[WhiteElo "2557"]
[BlackElo "2972"]
[TimeControl "180+1"]
[EndTime "10:40:04 PDT"]
[Termination "LiemLe won on time"]

1. d4 {[%clk 0:03:00.9]} 1... Nf6 {[%clk 0:02:59.5]} 2. c4 {[%clk 0:03:00.8]}
2... e6 {[%clk 0:02:59.8]} 3. Nf3 {[%clk 0:03:00.4]} 3... d5 {[%clk 0:02:59.7]}
4. g3 {[%clk 0:03:00.4]} 4... dxc4 {[%clk 0:02:56.9]} 5. Bg2 {[%clk 0:03:00.3]}
5... a6 {[%clk 0:02:57.3]} 6. O-O {[%clk 0:03:00.7]} 6... Nc6 {[%clk 0:02:57]}
7. e3 {[%clk 0:03:00.5]} 7... Rb8 {[%clk 0:02:57.4]} 8. Qe2 {[%clk 0:03:01.1]}
8... b5 {[%clk 0:02:56.9]} 9. Rd1 {[%clk 0:03:01.6]} 9... Bb7 {[%clk 0:02:52]}
10. e4 {[%clk 0:03:01.8]} 10... Be7 {[%clk 0:02:50.2]} 11. a4 {[%clk 0:03:01.1]}
11... O-O {[%clk 0:02:43.8]} 12. Nc3 {[%clk 0:03:01]} 12... b4 {[%clk
0:02:41.7]} 13. e5 {[%clk 0:02:59.9]} 13... Nd5 {[%clk 0:02:31.2]} 14. Ne4
{[%clk 0:02:58.5]} 14... Na5 {[%clk 0:02:30.2]} 15. Bg5 {[%clk 0:02:55.7]} 15...
h6 {[%clk 0:02:25.5]} 16. Bxe7 {[%clk 0:02:55.4]} 16... Qxe7 {[%clk 0:02:26.4]}
17. Nc5 {[%clk 0:02:55.2]} 17... c3 {[%clk 0:02:21.1]} 18. Ne1 {[%clk
0:02:47.1]} 18... Rfd8 {[%clk 0:02:06.8]} 19. Ned3 {[%clk 0:02:41]} 19... cxb2
{[%clk 0:01:52.5]} 20. Qxb2 {[%clk 0:02:39.6]} 20... Nc3 {[%clk 0:01:52.5]} 21.
Rdc1 {[%clk 0:02:28.4]} 21... Bxg2 {[%clk 0:01:50.1]} 22. Kxg2 {[%clk
0:02:29.3]} 22... Rxd4 {[%clk 0:01:45.5]} 23. Rxc3 {[%clk 0:02:29.7]} 23... Nc4
{[%clk 0:01:15]} 24. Qb1 {[%clk 0:02:18.4]} 24... Nd2 {[%clk 0:01:02.2]} 25. Qb2
{[%clk 0:02:16.8]} 25... Nc4 {[%clk 0:00:54.4]} 26. Qb1 {[%clk 0:02:16.6]} 26...
Qd8 {[%clk 0:00:54]} 27. Rc2 {[%clk 0:02:09.9]} 27... Na3 {[%clk 0:00:33.8]} 28.
Qb3 {[%clk 0:01:53.8]} 28... Nxc2 {[%clk 0:00:32.6]} 29. Qxc2 {[%clk 0:01:48.8]}
29... b3 {[%clk 0:00:33.5]} 30. Qc3 {[%clk 0:01:45.1]} 30... Qd5+ {[%clk
0:00:32.6]} 31. Kg1 {[%clk 0:01:45.4]} 31... Rc4 {[%clk 0:00:31.1]} 32. Qa5
{[%clk 0:01:37.7]} 32... b2 {[%clk 0:00:25.5]} 33. Rb1 {[%clk 0:01:37.5]} 33...
Rc2 {[%clk 0:00:22.6]} 34. Qxc7 {[%clk 0:01:29.3]} 34... Rb3 {[%clk 0:00:19.9]}
35. Qc8+ {[%clk 0:01:21]} 35... Kh7 {[%clk 0:00:19.3]} 36. Qxa6 {[%clk
0:01:21.9]} 36... Rbc3 {[%clk 0:00:17.3]} 37. Rxb2 {[%clk 0:01:12.4]} 37... Rxb2
{[%clk 0:00:18.2]} 38. Nxb2 {[%clk 0:01:05.2]} 38... Rc1+ {[%clk 0:00:18.3]} 0-1

[Event "*** SCC Grand Prix: Titled Tuesday Blitz"]
[Site "Chess.com"]
[Date "2020.09.08"]
[Round "4"]
[White "WiktoriaPOL"]
[Black "ChessFunMaker"]
[Result "1-0"]
[WhiteElo "1969"]
[BlackElo "2227"]
[TimeControl "180+1"]
[EndTime "10:40:07 PDT"]
[Termination "WiktoriaPOL won by checkmate"]

1. c4 {[%clk 0:03:00.9]} 1... Nf6 {[%clk 0:02:59.5]} 2. Nc3 {[%clk 0:03:00.1]}
2... g6 {[%clk 0:03:00]} 3. g3 {[%clk 0:02:59.8]} 3... Bg7 {[%clk 0:03:00.3]} 4.
Bg2 {[%clk 0:03:00.4]} 4... O-O {[%clk 0:03:00.8]} 5. e4 {[%clk 0:02:59.9]} 5...
d6 {[%clk 0:03:00.2]} 6. Nge2 {[%clk 0:02:59.4]} 6... c5 {[%clk 0:02:57.9]} 7.
O-O {[%clk 0:02:58.4]} 7... Nc6 {[%clk 0:02:58.3]} 8. d3 {[%clk 0:02:57.2]} 8...
a6 {[%clk 0:02:58]} 9. f4 {[%clk 0:02:55.9]} 9... Rb8 {[%clk 0:02:55.4]} 10. a4
{[%clk 0:02:54.9]} 10... Ne8 {[%clk 0:02:41.2]} 11. f5 {[%clk 0:02:46]} 11... e6
{[%clk 0:02:34.4]} 12. g4 {[%clk 0:02:27.9]} 12... Nd4 {[%clk 0:02:21.4]} 13.
Nxd4 {[%clk 0:02:03.2]} 13... cxd4 {[%clk 0:02:16.7]} 14. Ne2 {[%clk 0:01:57.4]}
14... b5 {[%clk 0:02:11.2]} 15. axb5 {[%clk 0:01:46.8]} 15... axb5 {[%clk
0:02:12.1]} 16. b3 {[%clk 0:01:45.6]} 16... bxc4 {[%clk 0:02:10.4]} 17. bxc4
{[%clk 0:01:40.9]} 17... exf5 {[%clk 0:02:08]} 18. exf5 {[%clk 0:01:38.8]} 18...
Bb7 {[%clk 0:02:07.7]} 19. Qe1 {[%clk 0:01:31.5]} 19... Bxg2 {[%clk 0:02:06.5]}
20. Kxg2 {[%clk 0:01:31]} 20... d5 {[%clk 0:02:07.4]} 21. c5 {[%clk 0:01:24.7]}
21... Nf6 {[%clk 0:01:54.4]} 22. h3 {[%clk 0:01:16.6]} 22... Nd7 {[%clk
0:01:52.5]} 23. Ba3 {[%clk 0:01:04.3]} 23... Re8 {[%clk 0:01:33.2]} 24. Qf2
{[%clk 0:00:59.1]} 24... Ne5 {[%clk 0:01:25.9]} 25. f6 {[%clk 0:00:53.5]} 25...
Nxd3 {[%clk 0:01:21.3]} 26. Qf3 {[%clk 0:00:49.1]} 26... Ne5 {[%clk 0:01:10.8]}
27. Qf4 {[%clk 0:00:43.8]} 27... Nd7 {[%clk 0:00:35.1]} 28. Nxd4 {[%clk
0:00:26.5]} 28... Bxf6 {[%clk 0:00:23.4]} 29. Nc6 {[%clk 0:00:19.9]} 29... Re2+
{[%clk 0:00:16.7]} 30. Kg1 {[%clk 0:00:17]} 30... Qe8 {[%clk 0:00:05.3]} 31.
Nxb8 {[%clk 0:00:16.4]} 31... Bxa1 {[%clk 0:00:05]} 32. Nxd7 {[%clk 0:00:12.9]}
32... Qxd7 {[%clk 0:00:05.2]} 33. Rxa1 {[%clk 0:00:10.9]} 33... Qa7 {[%clk
0:00:04.2]} 34. Qf6 {[%clk 0:00:06.9]} 34... Re6 {[%clk 0:00:03.4]} 35. Qd8+
{[%clk 0:00:05.9]} 35... Kg7 {[%clk 0:00:03.6]} 36. Bb2+ {[%clk 0:00:06]} 36...
Kh6 {[%clk 0:00:02.7]} 37. Rxa7 {[%clk 0:00:05.9]} 37... Re1+ {[%clk 0:00:03.6]}
38. Kf2 {[%clk 0:00:05.8]} 38... Re6 {[%clk 0:00:04.1]} 39. Qh4# {[%clk
0:00:05.6]} 1-0

[Event "*** SCC Grand Prix: Titled Tuesday Blitz"]
[Site "Chess.com"]
[Date "2020.09.08"]
[Round "4"]
[White "korbul"]
[Black "PauloCesarCosta_sad"]
[Result "1-0"]
[WhiteElo "2459"]
[BlackElo "2282"]
[TimeControl "180+1"]
[EndTime "10:40:11 PDT"]
[Termination "korbul won on time"]

1. e4 {[%clk 0:03:00.9]} 1... e6 {[%clk 0:02:59]} 2. d4 {[%clk 0:02:59.8]} 2...
d5 {[%clk 0:02:59.5]} 3. Nc3 {[%clk 0:02:59.9]} 3... Nf6 {[%clk 0:02:59.2]} 4.
Bg5 {[%clk 0:02:58.9]} 4... Be7 {[%clk 0:02:59.3]} 5. e5 {[%clk 0:02:58]} 5...
Nfd7 {[%clk 0:02:59.8]} 6. h4 {[%clk 0:02:56.7]} 6... Bxg5 {[%clk 0:02:58.9]} 7.
hxg5 {[%clk 0:02:56.4]} 7... Qxg5 {[%clk 0:02:59.8]} 8. Nh3 {[%clk 0:02:55.6]}
8... Qe7 {[%clk 0:02:58.1]} 9. Nf4 {[%clk 0:02:54.5]} 9... Nc6 {[%clk 0:02:41]}
10. a3 {[%clk 0:02:44]} 10... Nb6 {[%clk 0:02:15.3]} 11. Qg4 {[%clk 0:02:03.3]}
11... g6 {[%clk 0:02:14.7]} 12. O-O-O {[%clk 0:02:02.4]} 12... h5 {[%clk
0:02:08.4]} 13. Qg3 {[%clk 0:01:54.1]} 13... Bd7 {[%clk 0:02:08.2]} 14. Nh3
{[%clk 0:01:42.6]} 14... O-O-O {[%clk 0:02:03.2]} 15. f4 {[%clk 0:01:41.2]}
15... Kb8 {[%clk 0:01:55.7]} 16. Be2 {[%clk 0:01:40.2]} 16... Na5 {[%clk
0:01:50.7]} 17. Qg5 {[%clk 0:01:32.5]} 17... Nc8 {[%clk 0:01:38.5]} 18. Qxe7
{[%clk 0:01:29.4]} 18... Nxe7 {[%clk 0:01:39.4]} 19. Ng5 {[%clk 0:01:29.3]}
19... Rdf8 {[%clk 0:01:31.6]} 20. Rh3 {[%clk 0:01:24.1]} 20... f6 {[%clk
0:01:25.3]} 21. exf6 {[%clk 0:01:17]} 21... Rxf6 {[%clk 0:01:26.2]} 22. g3
{[%clk 0:01:16.7]} 22... Rff8 {[%clk 0:01:18.2]} 23. Bd3 {[%clk 0:01:14.2]}
23... Nac6 {[%clk 0:01:11.9]} 24. Ne2 {[%clk 0:01:13]} 24... Nf5 {[%clk
0:01:10.9]} 25. Bxf5 {[%clk 0:01:11.9]} 25... Rxf5 {[%clk 0:01:02.9]} 26. Ng1
{[%clk 0:01:09.3]} 26... Rff8 {[%clk 0:00:55.2]} 27. Rh4 {[%clk 0:00:59.1]}
27... Kc8 {[%clk 0:00:48.3]} 28. N1f3 {[%clk 0:00:58.6]} 28... Re8 {[%clk
0:00:43.2]} 29. c3 {[%clk 0:00:51.4]} 29... a6 {[%clk 0:00:41.4]} 30. Rdh1
{[%clk 0:00:50.8]} 30... Rhg8 {[%clk 0:00:36.6]} 31. Kd2 {[%clk 0:00:43.4]}
31... Re7 {[%clk 0:00:36.7]} 32. b3 {[%clk 0:00:41.4]} 32... Ree8 {[%clk
0:00:31.9]} 33. Kd3 {[%clk 0:00:40.7]} 33... Ne7 {[%clk 0:00:32]} 34. Ne5 {[%clk
0:00:38.2]} 34... Nf5 {[%clk 0:00:31]} 35. R4h3 {[%clk 0:00:38.3]} 35... Bb5+
{[%clk 0:00:29.6]} 36. Kd2 {[%clk 0:00:35.9]} 36... Bd7 {[%clk 0:00:30]} 37. g4
{[%clk 0:00:29.2]} 37... hxg4 {[%clk 0:00:29.2]} 38. Nxg4 {[%clk 0:00:30.1]}
38... Rgf8 {[%clk 0:00:26.4]} 39. Ne5 {[%clk 0:00:26.2]} 39... Nd6 {[%clk
0:00:25.5]} 40. Nxg6 {[%clk 0:00:25.2]} 40... Rg8 {[%clk 0:00:23.8]} 41. Ne5
{[%clk 0:00:25]} 41... Ref8 {[%clk 0:00:18.7]} 42. Rh4 {[%clk 0:00:23.1]} 42...
Nf5 {[%clk 0:00:17.7]} 43. Rh7 {[%clk 0:00:22.7]} 43... Bc6 {[%clk 0:00:15.5]}
44. Nxe6 {[%clk 0:00:22.5]} 44... Rf6 {[%clk 0:00:09.1]} 45. Rh8 {[%clk
0:00:21.1]} 45... Ng3 {[%clk 0:00:03.8]} 46. Rxg8+ {[%clk 0:00:20.6]} 1-0

[Event "*** SCC Grand Prix: Titled Tuesday Blitz"]
[Site "Chess.com"]
[Date "2020.09.08"]
[Round "4"]
[White "DishonorOnYourCow"]
[Black "Agibileg"]
[Result "0-1"]
[WhiteElo "2345"]
[BlackElo "2578"]
[TimeControl "180+1"]
[EndTime "10:40:13 PDT"]
[Termination "Agibileg won on time"]

1. d4 {[%clk 0:03:00.9]} 1... Nf6 {[%clk 0:02:58]} 2. c4 {[%clk 0:03:00.8]} 2...
g6 {[%clk 0:02:58.3]} 3. Nc3 {[%clk 0:03:00.2]} 3... Bg7 {[%clk 0:02:58.7]} 4.
e4 {[%clk 0:02:59.6]} 4... d6 {[%clk 0:02:59]} 5. f4 {[%clk 0:02:59.8]} 5... O-O
{[%clk 0:02:58.4]} 6. Nf3 {[%clk 0:03:00.1]} 6... c5 {[%clk 0:02:54.6]} 7. d5
{[%clk 0:03:00.3]} 7... e6 {[%clk 0:02:54.5]} 8. dxe6 {[%clk 0:03:01.2]} 8...
Bxe6 {[%clk 0:02:53.8]} 9. Bd3 {[%clk 0:03:01.7]} 9... Nc6 {[%clk 0:02:46.4]}
10. f5 {[%clk 0:03:01.3]} 10... Bd7 {[%clk 0:02:34.3]} 11. O-O {[%clk
0:03:00.8]} 11... Ng4 {[%clk 0:02:31.6]} 12. Nd5 {[%clk 0:02:56.9]} 12... Nge5
{[%clk 0:02:22.1]} 13. Nxe5 {[%clk 0:02:55.4]} 13... Bxe5 {[%clk 0:02:23]} 14.
f6 {[%clk 0:02:45.4]} 14... Be6 {[%clk 0:02:18.6]} 15. Bh6 {[%clk 0:02:27.1]}
15... Re8 {[%clk 0:02:16]} 16. Bg7 {[%clk 0:02:24.9]} 16... Bxd5 {[%clk
0:01:51.7]} 17. exd5 {[%clk 0:02:21.6]} 17... Bd4+ {[%clk 0:01:51.2]} 18. Kh1
{[%clk 0:02:20.6]} 18... Ne5 {[%clk 0:01:49.5]} 19. Be2 {[%clk 0:02:03.8]} 19...
Nd7 {[%clk 0:01:46.4]} 20. Bg4 {[%clk 0:01:23.2]} 20... Nxf6 {[%clk 0:01:44.5]}
21. Bxf6 {[%clk 0:01:23.2]} 21... Bxf6 {[%clk 0:01:44.3]} 22. Qf3 {[%clk
0:01:23.6]} 22... Kg7 {[%clk 0:01:43.3]} 23. Rf2 {[%clk 0:01:21.1]} 23... Rf8
{[%clk 0:01:35.3]} 24. Raf1 {[%clk 0:01:13.2]} 24... Bd4 {[%clk 0:01:33]} 25.
Re2 {[%clk 0:01:12.4]} 25... Qg5 {[%clk 0:01:15.7]} 26. Bd7 {[%clk 0:00:36.5]}
26... Rad8 {[%clk 0:01:10.1]} 27. Ba4 {[%clk 0:00:36.3]} 27... Be5 {[%clk
0:00:58.3]} 28. Ref2 {[%clk 0:00:25.7]} 28... f5 {[%clk 0:00:56.6]} 29. Re2
{[%clk 0:00:22.8]} 29... Rf7 {[%clk 0:00:51.8]} 30. g3 {[%clk 0:00:19.6]} 30...
Qf6 {[%clk 0:00:50.4]} 31. Qg2 {[%clk 0:00:17.8]} 31... a6 {[%clk 0:00:42.4]}
32. a3 {[%clk 0:00:17]} 32... Rdf8 {[%clk 0:00:41.2]} 33. Bc2 {[%clk 0:00:16.2]}
33... Qg5 {[%clk 0:00:39]} 34. Bd1 {[%clk 0:00:15.5]} 34... f4 {[%clk
0:00:37.9]} 35. gxf4 {[%clk 0:00:15.2]} 35... Qxg2+ {[%clk 0:00:38.7]} 36. Rxg2
{[%clk 0:00:15.8]} 36... Rxf4 {[%clk 0:00:39.1]} 37. Rxf4 {[%clk 0:00:14.9]}
37... Rxf4 {[%clk 0:00:40]} 38. Rd2 {[%clk 0:00:13.4]} 38... b5 {[%clk
0:00:32.1]} 39. cxb5 {[%clk 0:00:12.7]} 39... axb5 {[%clk 0:00:31.3]} 40. Kg2
{[%clk 0:00:13.2]} 40... Rh4 {[%clk 0:00:23.9]} 41. h3 {[%clk 0:00:11.8]} 41...
Re4 {[%clk 0:00:22.7]} 42. b3 {[%clk 0:00:11.7]} 42... Re3 {[%clk 0:00:21.8]}
43. a4 {[%clk 0:00:10]} 43... bxa4 {[%clk 0:00:21.2]} 44. bxa4 {[%clk
0:00:10.9]} 44... Rg3+ {[%clk 0:00:21.2]} 45. Kf2 {[%clk 0:00:10.4]} 45... Rxh3
{[%clk 0:00:21.4]} 46. Re2 {[%clk 0:00:02.9]} 46... Rh2+ {[%clk 0:00:15.6]} 0-1

[Event "*** SCC Grand Prix: Titled Tuesday Blitz"]
[Site "Chess.com"]
[Date "2020.09.08"]
[Round "4"]
[White "anon102030"]
[Black "Fandorine"]
[Result "0-1"]
[WhiteElo "2724"]
[BlackElo "2910"]
[TimeControl "180+1"]
[EndTime "10:40:14 PDT"]
[Termination "Fandorine won by resignation"]

1. e4 {[%clk 0:03:00.9]} 1... e5 {[%clk 0:02:58.3]} 2. Nf3 {[%clk 0:03:00.1]}
2... Nc6 {[%clk 0:02:58.8]} 3. Bc4 {[%clk 0:03:00.2]} 3... Bc5 {[%clk
0:02:57.1]} 4. c3 {[%clk 0:03:00.1]} 4... Nf6 {[%clk 0:02:56.2]} 5. d4 {[%clk
0:02:59.7]} 5... exd4 {[%clk 0:02:56.3]} 6. cxd4 {[%clk 0:03:00.4]} 6... Bb4+
{[%clk 0:02:55.2]} 7. Bd2 {[%clk 0:03:01]} 7... Nxe4 {[%clk 0:02:51.2]} 8. Bxb4
{[%clk 0:02:58.3]} 8... Nxb4 {[%clk 0:02:52.1]} 9. Bxf7+ {[%clk 0:02:57.5]} 9...
Kxf7 {[%clk 0:02:52.7]} 10. Qb3+ {[%clk 0:02:57.6]} 10... Kf8 {[%clk 0:02:52.7]}
11. Qxb4+ {[%clk 0:02:55.4]} 11... Qe7 {[%clk 0:02:53.1]} 12. Qxe7+ {[%clk
0:02:54.1]} 12... Kxe7 {[%clk 0:02:54]} 13. Nbd2 {[%clk 0:02:48.1]} 13... Nf6
{[%clk 0:02:52.3]} 14. O-O {[%clk 0:02:42.7]} 14... Kd8 {[%clk 0:02:51.3]} 15.
Rfe1 {[%clk 0:02:42.6]} 15... Rf8 {[%clk 0:02:49.6]} 16. Ne4 {[%clk 0:02:38.5]}
16... d6 {[%clk 0:02:38.1]} 17. Nxf6 {[%clk 0:02:35.1]} 17... Rxf6 {[%clk
0:02:39]} 18. Re3 {[%clk 0:02:29.5]} 18... Re6 {[%clk 0:02:30.4]} 19. Rae1
{[%clk 0:02:25.8]} 19... Rxe3 {[%clk 0:02:30.1]} 20. Rxe3 {[%clk 0:02:26.3]}
20... Bf5 {[%clk 0:02:12.5]} 21. h3 {[%clk 0:02:10.3]} 21... Kd7 {[%clk
0:02:08.2]} 22. g4 {[%clk 0:02:01.4]} 22... Be6 {[%clk 0:02:06.5]} 23. a3 {[%clk
0:01:55.7]} 23... a5 {[%clk 0:02:04.1]} 24. Kh2 {[%clk 0:01:51]} 24... Bd5
{[%clk 0:02:00.3]} 25. Ne1 {[%clk 0:01:39.1]} 25... Ra6 {[%clk 0:01:50.3]} 26.
Re2 {[%clk 0:01:11.8]} 26... Rc6 {[%clk 0:01:47.3]} 27. Rd2 {[%clk 0:01:08.6]}
27... b5 {[%clk 0:01:31.2]} 28. Nc2 {[%clk 0:00:58.1]} 28... Be4 {[%clk
0:01:21.5]} 29. Ne3 {[%clk 0:00:58.1]} 29... Rc1 {[%clk 0:01:19]} 30. Kg3 {[%clk
0:00:53.8]} 30... b4 {[%clk 0:01:11.9]} 31. axb4 {[%clk 0:00:49.9]} 31... axb4
{[%clk 0:01:12.8]} 32. Kf4 {[%clk 0:00:42.1]} 32... Bg6 {[%clk 0:01:10.7]} 33.
Nd5 {[%clk 0:00:37]} 33... b3 {[%clk 0:01:07.3]} 34. Ne3 {[%clk 0:00:35.4]}
34... Rc2 {[%clk 0:00:50.8]} 35. Nf1 {[%clk 0:00:35.2]} 35... Kc6 {[%clk
0:00:47.5]} 36. Ke3 {[%clk 0:00:33.8]} 36... Kd5 {[%clk 0:00:43]} 37. f4 {[%clk
0:00:33.7]} 37... Rc1 {[%clk 0:00:36.5]} 38. Kf2 {[%clk 0:00:23.9]} 38... Bc2
{[%clk 0:00:33.6]} 39. Ne3+ {[%clk 0:00:20.6]} 39... Ke4 {[%clk 0:00:33.6]} 40.
f5 {[%clk 0:00:19.9]} 40... Bd3 {[%clk 0:00:21.6]} 41. g5 {[%clk 0:00:16.5]}
41... Rc2 {[%clk 0:00:18.7]} 42. Rxc2 {[%clk 0:00:07]} 42... bxc2 {[%clk
0:00:18.6]} 43. Nxc2 {[%clk 0:00:06.7]} 43... Bxc2 {[%clk 0:00:19.5]} 44. f6
{[%clk 0:00:06.8]} 44... gxf6 {[%clk 0:00:20.1]} 45. gxf6 {[%clk 0:00:07.7]}
45... Bb3 {[%clk 0:00:20.4]} 46. d5 {[%clk 0:00:05.9]} 46... Bxd5 {[%clk
0:00:20.1]} 0-1

[Event "*** SCC Grand Prix: Titled Tuesday Blitz"]
[Site "Chess.com"]
[Date "2020.09.08"]
[Round "4"]
[White "ClydeHillKid"]
[Black "TregubovP"]
[Result "0-1"]
[WhiteElo "2345"]
[BlackElo "2588"]
[TimeControl "180+1"]
[EndTime "10:40:14 PDT"]
[Termination "TregubovP won on time"]

1. e4 {[%clk 0:03:00.9]} 1... e6 {[%clk 0:02:59.7]} 2. d3 {[%clk 0:03:00.7]}
2... c5 {[%clk 0:02:56.6]} 3. Nf3 {[%clk 0:03:00.5]} 3... Nc6 {[%clk 0:02:57]}
4. g3 {[%clk 0:03:00.8]} 4... Nge7 {[%clk 0:02:56.2]} 5. Bg2 {[%clk 0:03:00.9]}
5... g6 {[%clk 0:02:56.7]} 6. O-O {[%clk 0:03:00.8]} 6... Bg7 {[%clk 0:02:57.3]}
7. Re1 {[%clk 0:02:54.8]} 7... O-O {[%clk 0:02:57.3]} 8. Be3 {[%clk 0:02:54.6]}
8... d6 {[%clk 0:02:56.9]} 9. c3 {[%clk 0:02:54.2]} 9... Rb8 {[%clk 0:02:45.4]}
10. d4 {[%clk 0:02:53.9]} 10... cxd4 {[%clk 0:02:45.2]} 11. cxd4 {[%clk
0:02:54.8]} 11... d5 {[%clk 0:02:45.7]} 12. e5 {[%clk 0:02:51.7]} 12... Nf5
{[%clk 0:02:45.7]} 13. Bg5 {[%clk 0:02:47.1]} 13... f6 {[%clk 0:02:44.7]} 14.
exf6 {[%clk 0:02:46.2]} 14... Bxf6 {[%clk 0:02:45.3]} 15. Bxf6 {[%clk
0:02:46.3]} 15... Qxf6 {[%clk 0:02:44.8]} 16. Nc3 {[%clk 0:02:26]} 16... Nfxd4
{[%clk 0:02:43.3]} 17. Re3 {[%clk 0:02:23]} 17... Bd7 {[%clk 0:02:27.5]} 18. Rd3
{[%clk 0:02:13.8]} 18... Nxf3+ {[%clk 0:02:20.7]} 19. Rxf3 {[%clk 0:02:14.7]}
19... Qd4 {[%clk 0:02:18.3]} 20. Rxf8+ {[%clk 0:02:00.9]} 20... Rxf8 {[%clk
0:02:17.2]} 21. Qe2 {[%clk 0:02:01.8]} 21... Qe5 {[%clk 0:02:07.9]} 22. Qd2
{[%clk 0:01:42.3]} 22... Kg7 {[%clk 0:01:56.2]} 23. Re1 {[%clk 0:01:40.9]} 23...
Qd4 {[%clk 0:01:53.4]} 24. Qe2 {[%clk 0:01:16.4]} 24... Qf6 {[%clk 0:01:53]} 25.
Qd2 {[%clk 0:01:10.7]} 25... Ne5 {[%clk 0:01:49.4]} 26. f4 {[%clk 0:00:56.6]}
26... Nc4 {[%clk 0:01:49.2]} 27. Qf2 {[%clk 0:00:56]} 27... Bc6 {[%clk
0:01:45.9]} 28. Re2 {[%clk 0:00:42]} 28... a6 {[%clk 0:01:42.3]} 29. Qe1 {[%clk
0:00:32.8]} 29... Re8 {[%clk 0:01:26.2]} 30. b3 {[%clk 0:00:29.8]} 30... Nd6
{[%clk 0:01:26]} 31. Re5 {[%clk 0:00:24.5]} 31... Nf7 {[%clk 0:01:11.2]} 32. Re2
{[%clk 0:00:22.3]} 32... Nd6 {[%clk 0:00:55.1]} 33. Bh3 {[%clk 0:00:20.5]} 33...
d4 {[%clk 0:00:51.4]} 34. Nd1 {[%clk 0:00:12]} 34... d3 {[%clk 0:00:45.2]} 35.
Re5 {[%clk 0:00:06.5]} 35... Nf7 {[%clk 0:00:39]} 36. Re3 {[%clk 0:00:05.2]}
36... Qd4 {[%clk 0:00:36.9]} 37. Nf2 {[%clk 0:00:04]} 37... d2 {[%clk
0:00:34.2]} 38. Qe2 {[%clk 0:00:04]} 38... Rd8 {[%clk 0:00:33.3]} 39. Nd1 {[%clk
0:00:04]} 39... e5 {[%clk 0:00:33.3]} 40. fxe5 {[%clk 0:00:03.6]} 40... Nxe5
{[%clk 0:00:33]} 41. Kf1 {[%clk 0:00:03.5]} 41... Rf8+ {[%clk 0:00:24.5]} 42.
Kg1 {[%clk 0:00:03.2]} 42... Nf3+ {[%clk 0:00:19.2]} 43. Kf2 {[%clk 0:00:03.3]}
43... Nxh2+ {[%clk 0:00:18.4]} 44. Kg1 {[%clk 0:00:02.6]} 44... Nf3+ {[%clk
0:00:18.9]} 45. Kf2 {[%clk 0:00:02.8]} 45... Qd5 {[%clk 0:00:15.5]} 46. Bg2
{[%clk 0:00:01.1]} 46... Nd4+ {[%clk 0:00:14.1]} 0-1

[Event "*** SCC Grand Prix: Titled Tuesday Blitz"]
[Site "Chess.com"]
[Date "2020.09.08"]
[Round "4"]
[White "Grineva_Marianna"]
[Black "amatatanav"]
[Result "0-1"]
[WhiteElo "2219"]
[BlackElo "2409"]
[TimeControl "180+1"]
[EndTime "10:40:16 PDT"]
[Termination "amatatanav won on time"]

1. e4 {[%clk 0:03:00.9]} 1... c5 {[%clk 0:02:56.9]} 2. Nf3 {[%clk 0:02:58.4]}
2... Nc6 {[%clk 0:02:56.7]} 3. d4 {[%clk 0:02:58.4]} 3... cxd4 {[%clk
0:02:56.5]} 4. Nxd4 {[%clk 0:02:59.3]} 4... g6 {[%clk 0:02:55.7]} 5. c4 {[%clk
0:02:58.6]} 5... Nf6 {[%clk 0:02:55.3]} 6. Nc3 {[%clk 0:02:57.3]} 6... d6 {[%clk
0:02:55.4]} 7. Be2 {[%clk 0:02:36.2]} 7... Nxd4 {[%clk 0:02:55.1]} 8. Qxd4
{[%clk 0:02:35.6]} 8... Bg7 {[%clk 0:02:56]} 9. Be3 {[%clk 0:02:32.4]} 9... O-O
{[%clk 0:02:55.8]} 10. Qd2 {[%clk 0:02:31.6]} 10... a5 {[%clk 0:02:55.8]} 11.
O-O {[%clk 0:02:18.4]} 11... a4 {[%clk 0:02:55.8]} 12. f3 {[%clk 0:02:15.8]}
12... Qa5 {[%clk 0:02:39.8]} 13. Rac1 {[%clk 0:02:02.5]} 13... Be6 {[%clk
0:02:36.1]} 14. Rfd1 {[%clk 0:02:00.7]} 14... Rfc8 {[%clk 0:02:30.9]} 15. b3
{[%clk 0:01:54.2]} 15... axb3 {[%clk 0:02:29.1]} 16. axb3 {[%clk 0:01:55.1]}
16... Qb4 {[%clk 0:02:23.4]} 17. Nd5 {[%clk 0:01:49]} 17... Qxd2 {[%clk
0:01:54.1]} 18. Rxd2 {[%clk 0:01:49.1]} 18... Nxd5 {[%clk 0:01:42.9]} 19. exd5
{[%clk 0:01:50]} 19... Bf5 {[%clk 0:01:34.2]} 20. g4 {[%clk 0:01:45.1]} 20...
Bd7 {[%clk 0:01:33.4]} 21. Kf2 {[%clk 0:01:32.7]} 21... Ra3 {[%clk 0:01:32.1]}
22. Bd1 {[%clk 0:01:31.5]} 22... b5 {[%clk 0:01:19.4]} 23. c5 {[%clk 0:01:25.4]}
23... dxc5 {[%clk 0:00:50.8]} 24. Rxc5 {[%clk 0:01:16.2]} 24... Ra1 {[%clk
0:00:37]} 25. Rxc8+ {[%clk 0:01:01.2]} 25... Bxc8 {[%clk 0:00:37.9]} 26. Be2
{[%clk 0:00:53.6]} 26... Bc3 {[%clk 0:00:25.9]} 27. Rc2 {[%clk 0:00:35.4]} 27...
b4 {[%clk 0:00:25.8]} 28. Bd2 {[%clk 0:00:30]} 28... Bb7 {[%clk 0:00:16.7]} 29.
Bxc3 {[%clk 0:00:27.6]} 29... bxc3 {[%clk 0:00:17.6]} 30. Rxc3 {[%clk
0:00:19.9]} 30... Bxd5 {[%clk 0:00:17.6]} 31. b4 {[%clk 0:00:17.6]} 31... Rb1
{[%clk 0:00:17.2]} 32. b5 {[%clk 0:00:16.7]} 32... Kg7 {[%clk 0:00:16.8]} 33.
Rc7 {[%clk 0:00:16.4]} 33... Kf6 {[%clk 0:00:16.4]} 34. Rc5 {[%clk 0:00:15.8]}
34... e6 {[%clk 0:00:16.2]} 35. h4 {[%clk 0:00:15.5]} 35... h6 {[%clk
0:00:16.1]} 36. Rc7 {[%clk 0:00:12.7]} 36... Rb2 {[%clk 0:00:14.9]} 37. Ke3
{[%clk 0:00:11.3]} 37... Rb3+ {[%clk 0:00:14.7]} 38. Kd2 {[%clk 0:00:10.2]}
38... g5 {[%clk 0:00:10.6]} 39. hxg5+ {[%clk 0:00:08.9]} 39... hxg5 {[%clk
0:00:11.5]} 40. Rc3 {[%clk 0:00:05.8]} 40... Rb2+ {[%clk 0:00:10.5]} 41. Ke3
{[%clk 0:00:05.4]} 41... Ke5 {[%clk 0:00:10.2]} 42. Rc5 {[%clk 0:00:02.9]} 42...
f5 {[%clk 0:00:08.9]} 43. gxf5 {[%clk 0:00:02.4]} 43... exf5 {[%clk 0:00:09.8]}
0-1